bitfinex-derivatives/quotes_BTCF0:USTF0_20250903
["timestamp","ask_amount","ask_price","bid_price","bid_amount"]
[1756864579796,0.08839432,111210.0,111200.0,1.19106168]
[1756864580207,0.373596,111210.0,111200.0,0.929]
[1756864580509,0.373596,111210.0,111200.0,1.19106168]
[1756864582705,0.433166,111210.0,111200.0,0.929]
[1756864582903,0.763166,111210.0,111200.0,0.09968]
[1756864583104,0.443166,111210.0,111200.0,0.9292]
[1756864583308,0.433166,111210.0,111200.0,0.9292]
[1756864583612,0.743166,111210.0,111200.0,0.9292]
[1756864584714,0.793166,111210.0,111200.0,0.9292]
[1756864586007,0.793166,111210.0,111200.0,1.19126168]
[1756864586206,0.42721956,111210.0,111200.0,1.19126168]
[1756864586607,0.12912788,111210.0,111200.0,1.19126168]
[1756864586808,0.39118956,111210.0,111200.0,1.19126168]
[1756864587713,0.39018956,111210.0,111200.0,1.19126168]
[1756864589011,0.39018956,111210.0,111200.0,0.9292]
[1756864589216,0.16415788,111210.0,111200.0,1.19126168]
[1756864589414,0.42621956,111210.0,111200.0,1.19126168]
[1756864589611,0.08244788,111210.0,111200.0,1.70332336]
[1756864589818,0.03395913,111210.0,111200.0,1.70332336]
[1756864590716,0.03395913,111210.0,111200.0,1.1792]
[1756864590917,0.03295913,111210.0,111200.0,1.70332336]
[1756864591214,0.03195913,111210.0,111200.0,1.70632336]
[1756864591413,0.03195913,111210.0,111200.0,1.53167621]
[1756864591619,0.03195913,111210.0,111200.0,1.88115242]
[1756864592012,0.03195913,111210.0,111200.0,1.53167621]
[1756864592912,0.03195913,111210.0,111200.0,1.54061233]
[1756864593116,0.03195913,111210.0,111200.0,1.98001244]
[1756864593418,0.0001,111210.0,111200.0,2.34001244]
[1756864595421,0.0001,111210.0,111200.0,1.64106002]
[1756864595622,0.0001,111210.0,111200.0,2.34001244]
[1756864595922,0.0001,111210.0,111200.0,2.21980854]
[1756864596823,0.0001,111210.0,111200.0,2.30973244]
[1756864597121,0.0001,111210.0,111200.0,2.21980854]
[1756864599724,0.0001,111210.0,111200.0,1.39056854]
[1756864600026,0.0001,111210.0,111200.0,1.52037612]
[1756864600218,0.0001,111210.0,111200.0,1.86985233]
[1756864600615,0.0001,111210.0,111200.0,1.03215621]
[1756864600822,0.0001,111210.0,111200.0,1.61091621]
[1756864602035,0.0001,111210.0,111200.0,0.78215621]
[1756864602226,0.33153,111210.0,111200.0,0.10268]
[1756864602421,0.35332187,111210.0,111200.0,0.10268]
[1756864602726,0.35332187,111210.0,111200.0,0.8488]
[1756864602920,0.35332187,111210.0,111200.0,1.19827621]
[1756864603316,0.35332187,111210.0,111200.0,1.19527621]
[1756864603317,0.31887187,111210.0,111200.0,1.19527621]
[1756864603519,0.35532187,111210.0,111200.0,1.19527621]
[1756864603726,0.35532187,111210.0,111200.0,0.8458]
[1756864603924,0.35532187,111210.0,111200.0,1.19527621]
[1756864604525,0.35532187,111210.0,111200.0,0.08487]
[1756864604724,0.35532187,111210.0,111200.0,0.92874]
[1756864604924,0.35432187,111210.0,111200.0,0.92874]
[1756864605326,0.35432187,111210.0,111200.0,1.27821621]
[1756864605530,0.31787187,111210.0,111200.0,1.27821621]
[1756864606029,0.31887187,111210.0,111200.0,1.27821621]
[1756864606228,0.31987187,111210.0,111200.0,1.27821621]
[1756864606724,0.31887187,111210.0,111200.0,1.27821621]
[1756864606936,0.02289187,111210.0,111200.0,1.27821621]
[1756864607831,0.02189187,111210.0,111200.0,1.27821621]
[1756864608636,0.02189187,111210.0,111200.0,1.27921621]
[1756864608931,0.02189187,111210.0,111200.0,1.28121621]
[1756864609131,0.02189187,111210.0,111200.0,1.63069242]
[1756864609328,0.02189187,111210.0,111200.0,1.88069242]
[1756864609538,0.02189187,111210.0,111200.0,1.53121621]
[1756864611030,0.02189187,111210.0,111200.0,1.28121621]
[1756864611734,0.02189187,111210.0,111200.0,1.54501621]
[1756864611933,0.04518187,111210.0,111200.0,1.20038]
[1756864612231,0.02189187,111210.0,111200.0,1.54985621]
[1756864614835,0.02189187,111210.0,111200.0,1.89933242]
[1756864615228,0.02189187,111210.0,111200.0,1.54985621]
[1756864615627,0.02189187,111210.0,111200.0,1.89933242]
[1756864615934,0.0001,111210.0,111200.0,1.98925622]
[1756864616138,0.0219247,111210.0,111200.0,2.23925622]
[1756864617935,0.0219247,111210.0,111200.0,2.14933242]
[1756864619328,0.0219247,111210.0,111200.0,1.89933242]
[1756864620536,0.0219247,111210.0,111200.0,1.54985621]
[1756864622040,0.0219247,111210.0,111200.0,0.71573621]
[1756864622338,0.0219247,111210.0,111200.0,1.54925621]
[1756864623333,0.0679047,111210.0,111200.0,0.71573621]
[1756864623538,0.0679047,111210.0,111200.0,0.08787]
[1756864623539,0.70283091,111210.0,111200.0,0.08787]
[1756864623734,0.75131794,111210.0,111200.0,0.08787]
[1756864623931,0.75131794,111210.0,111200.0,0.92127]
[1756864625036,0.75231794,111210.0,111200.0,0.91927]
[1756864625335,0.75331794,111210.0,111200.0,0.91827]
[1756864626240,0.35535298,111210.0,111200.0,0.93286]
[1756864626537,0.35535298,111210.0,111200.0,1.28233621]
[1756864627632,0.35435298,111210.0,111200.0,1.28233621]
[1756864627835,0.35335298,111210.0,111200.0,0.93286]
[1756864628640,0.35535298,111210.0,111200.0,0.93286]
[1756864635444,0.35535298,111210.0,111200.0,0.93246]
[1756864636133,0.35535298,111210.0,111200.0,0.09946]
[1756864636337,0.35535298,111210.0,111200.0,0.93258]
[1756864638447,0.35535298,111210.0,111200.0,0.93218]
[1756864638837,0.35535298,111210.0,111200.0,1.28165621]
[1756864639038,0.35535298,111210.0,111200.0,0.93218]
[1756864640746,0.35535298,111210.0,111200.0,1.28165621]
[1756864642542,0.35535298,111210.0,111200.0,0.93218]
[1756864642746,0.35535298,111210.0,111200.0,1.28165621]
[1756864643443,0.35535298,111210.0,111200.0,0.93218]
[1756864643651,0.35535298,111210.0,111200.0,1.28165621]
[1756864643949,0.35535298,111210.0,111200.0,0.93218]
[1756864644149,0.29891298,111210.0,111200.0,0.93218]
[1756864644646,0.32236298,111210.0,111200.0,0.93218]
[1756864644842,0.27392298,111210.0,111200.0,1.28165621]
[1756864645043,0.02392298,111210.0,111200.0,1.28165621]
[1756864645244,0.02392298,111210.0,111200.0,1.18218]
[1756864645551,0.02392298,111210.0,111200.0,1.97105622]
[1756864646150,0.02292298,111210.0,111200.0,1.97105622]
[1756864646452,0.0011,111210.0,111200.0,1.97105622]
[1756864646652,0.0001,111210.0,111200.0,1.97105622]
[1756864647062,0.0001,111210.0,111200.0,1.97305622]
[1756864647762,0.0001,111210.0,111200.0,1.97405622]
[1756864650163,0.0001,111210.0,111200.0,1.88413242]
[1756864651261,0.0001,111210.0,111200.0,1.97405622]
[1756864651461,0.0001,111210.0,111200.0,2.06130051]
[1756864652266,0.0001,111210.0,111200.0,1.13865671]
[1756864652459,0.0001,111210.0,111200.0,1.71311114]
[1756864653661,0.0001,111210.0,111200.0,0.87659114]
[1756864653862,0.0001,111210.0,111200.0,1.71343114]
[1756864654970,0.0001,111210.0,111200.0,1.80335504]
[1756864655473,0.0001,111210.0,111200.0,2.06542061]
[1756864655869,0.0001,111210.0,111200.0,1.80335504]
[1756864656864,0.0001,111210.0,111200.0,2.06542061]
[1756864659672,0.0001,111210.0,111200.0,2.12542061]
[1756864659868,0.0001,111210.0,111200.0,2.68922061]
[1756864660667,0.0001,111230.0,111210.0,0.0899111]
[1756864660873,0.02179962,111240.0,111220.0,1.76243441]
[1756864661178,0.10427564,111250.0,111240.0,0.04921]
[1756864661474,0.22427564,111250.0,111240.0,1.44509114]
[1756864661775,0.18957564,111250.0,111240.0,1.44509114]
[1756864661976,0.22427564,111250.0,111240.0,1.44509114]
[1756864662366,0.22427564,111250.0,111240.0,0.92088]
[1756864662571,0.22427564,111250.0,111240.0,1.18294557]
[1756864662770,0.22827564,111250.0,111240.0,1.44601114]
[1756864662970,0.19357564,111250.0,111240.0,1.44601114]
[1756864663170,0.22827564,111250.0,111240.0,1.44601114]
[1756864663572,0.27579564,111250.0,111240.0,1.44601114]
[1756864663973,0.27879564,111250.0,111240.0,1.44601114]
[1756864664777,0.27479564,111250.0,111240.0,1.44501114]
[1756864664977,0.32600564,111250.0,111240.0,0.60805114]
[1756864665272,0.36070564,111250.0,111240.0,1.44577114]
[1756864665474,0.32600564,111250.0,111240.0,1.44577114]
[1756864665682,0.27779564,111250.0,111240.0,1.44577114]
[1756864665982,0.30112564,111250.0,111240.0,1.44577114]
[1756864666369,0.30112564,111250.0,111240.0,1.51647963]
[1756864666576,0.27679564,111250.0,111240.0,1.51647963]
[1756864666775,0.27679564,111250.0,111240.0,1.44577114]
[1756864667376,0.31149564,111250.0,111240.0,1.44577114]
[1756864667682,0.35970564,111250.0,111240.0,1.44921114]
[1756864668272,0.35970564,111250.0,111240.0,0.60805114]
[1756864668473,0.58707121,111250.0,111230.0,0.29851]
[1756864668675,0.34497557,111240.0,111230.0,0.60808557]
[1756864668874,0.36677121,111240.0,111230.0,1.44960557]
[1756864669174,0.36677121,111240.0,111230.0,1.44976557]
[1756864669373,0.10470564,111240.0,111230.0,1.1877]
[1756864669573,0.10470564,111240.0,111230.0,1.44976557]
[1756864669878,0.92732553,111240.0,111230.0,0.0248]
[1756864670073,0.40319439,111240.0,111230.0,0.86632]
[1756864670268,0.92732553,111240.0,111230.0,0.86632]
[1756864670575,0.0347,111230.0,111220.0,2.05964259]
[1756864670776,0.31856121,111230.0,111220.0,2.63897702]
[1756864671175,0.36704996,111230.0,111220.0,2.90104259]
[1756864671579,0.10598439,111230.0,111220.0,2.90104259]
[1756864671881,0.10598439,111230.0,111220.0,2.90072259]
[1756864671882,0.37686922,111230.0,111220.0,2.90072259]
[1756864672272,0.32838047,111230.0,111220.0,2.63865702]
[1756864672473,0.57838047,111230.0,111220.0,2.61751]
[1756864672781,0.56956121,111230.0,111220.0,2.87957557]
[1756864673579,0.30749564,111230.0,111220.0,2.87957557]
[1756864673778,0.56956121,111230.0,111220.0,2.87957557]
[1756864673978,0.56956121,111230.0,111220.0,2.61735]
[1756864674179,0.35598439,111230.0,111220.0,2.87941557]
[1756864674577,0.61804996,111230.0,111220.0,2.03857557]
[1756864674881,0.61804996,111230.0,111220.0,2.87961557]
[1756864675490,0.31642791,111230.0,111220.0,2.61755]
[1756864675684,0.30749564,111230.0,111220.0,2.87961557]
[1756864675880,0.56956121,111230.0,111220.0,2.87961557]
[1756864676079,0.30749564,111230.0,111220.0,3.14168114]
[1756864676387,0.56956121,111230.0,111220.0,2.87961557]
[1756864676784,0.56956121,111230.0,111220.0,2.61755]
[1756864676979,0.30749564,111230.0,111220.0,2.87961557]
[1756864677183,0.53486121,111230.0,111220.0,2.87961557]
[1756864677585,0.30749564,111230.0,111220.0,2.87961557]
[1756864677785,0.02279564,111230.0,111220.0,3.14168114]
[1756864678086,0.02279564,111230.0,111220.0,1.39988114]
[1756864678790,0.10570564,111230.0,111220.0,1.44739114]
[1756864680394,0.36777121,111230.0,111220.0,1.18532557]
[1756864680593,0.36787121,111230.0,111220.0,0.34428557]
[1756864680802,0.36787121,111230.0,111220.0,1.18580557]
[1756864682989,0.36787121,111230.0,111220.0,1.18540557]
[1756864683190,0.10580564,111230.0,111220.0,1.18540557]
[1756864683388,0.36787121,111230.0,111220.0,1.18540557]
[1756864683889,0.36787121,111230.0,111220.0,1.44747114]
[1756864684198,0.33317121,111230.0,111220.0,1.44747114]
[1756864684390,0.02289564,111230.0,111220.0,1.44747114]
[1756864685484,0.02289564,111230.0,111220.0,1.69747114]
[1756864685686,0.02289564,111230.0,111220.0,1.78737914]
[1756864685890,0.0011,111230.0,111220.0,1.69747114]
[1756864686090,0.0011,111230.0,111220.0,1.78737914]
[1756864687398,0.0011,111230.0,111220.0,1.69747114]
[1756864688998,0.0011,111230.0,111220.0,2.04944471]
[1756864689393,0.0011,111230.0,111220.0,1.95953671]
[1756864690297,0.0011,111230.0,111220.0,1.69747114]
[1756864691597,0.0011,111230.0,111220.0,2.22333671]
[1756864692201,0.0011,111230.0,111220.0,2.31324471]
[1756864692709,0.0011,111230.0,111220.0,2.07944471]
[1756864693210,0.0011,111230.0,111220.0,2.10041619]
[1756864694795,0.0011,111230.0,111220.0,2.45041619]
[1756864696996,0.0001,111250.0,111230.0,0.0898961]
[1756864697298,0.13063875,111280.0,111270.0,0.34516557]
[1756864697497,0.31242042,111280.0,111270.0,1.18600557]
[1756864697801,0.31242042,111280.0,111270.0,0.34516557]
[1756864698005,0.26393167,111280.0,111270.0,1.18580557]
[1756864698901,0.26393167,111280.0,111270.0,1.18680557]
[1756864698902,0.26893167,111280.0,111270.0,1.18680557]
[1756864699103,0.27593167,111280.0,111270.0,1.18780557]
[1756864700903,0.53799724,111280.0,111270.0,0.0851]
[1756864701101,0.78799724,111280.0,111270.0,0.8444]
[1756864701303,0.78799724,111280.0,111270.0,1.14164557]
[1756864701606,0.78199724,111280.0,111270.0,1.13964557]
[1756864702402,0.78199724,111280.0,111270.0,0.34516557]
[1756864702603,0.95199724,111280.0,111270.0,1.18528557]
[1756864702999,0.68993167,111280.0,111270.0,1.18528557]
[1756864703199,0.63199724,111280.0,111270.0,0.92322]
[1756864703506,0.89406281,111280.0,111270.0,0.88804]
[1756864703704,0.89406281,111280.0,111270.0,0.92322]
[1756864703905,1.23406281,111280.0,111270.0,0.92322]
[1756864704205,1.23406281,111280.0,111270.0,0.0831]
[1756864704503,0.97199724,111280.0,111270.0,0.9231]
[1756864704703,0.97199724,111280.0,111270.0,0.84004]
[1756864704704,1.23406281,111280.0,111270.0,0.84004]
[1756864705400,0.70993167,111280.0,111270.0,0.02329]
[1756864705704,1.23406281,111280.0,111270.0,0.86329]
[1756864705905,1.23406281,111280.0,111270.0,0.88792]
[1756864706304,1.28255156,111280.0,111270.0,0.88792]
[1756864706994,1.28255156,111280.0,111270.0,0.04792]
[1756864707401,1.28255156,111280.0,111270.0,0.8648]
[1756864707704,1.28255156,111280.0,111270.0,0.04792]
[1756864707907,1.28255156,111280.0,111270.0,0.88892]
[1756864709110,0.75842042,111280.0,111270.0,0.9241]
[1756864709312,1.28255156,111280.0,111270.0,0.9241]
[1756864710307,1.23406281,111280.0,111270.0,0.9241]
[1756864711009,1.23406281,111280.0,111270.0,0.88892]
[1756864711510,1.23406281,111280.0,111270.0,0.9241]
[1756864711710,1.23406281,111280.0,111270.0,0.88892]
[1756864711902,1.23406281,111280.0,111270.0,0.9241]
[1756864712302,0.70993167,111280.0,111270.0,0.9241]
[1756864712508,1.23406281,111280.0,111270.0,0.9241]
[1756864713313,1.23406281,111280.0,111270.0,1.18616557]
[1756864713610,1.0591201,111280.0,111270.0,0.9241]
[1756864714010,0.70993167,111280.0,111270.0,0.9241]
[1756864714211,1.0591201,111280.0,111270.0,0.9241]
[1756864715312,0.77436686,111280.0,111270.0,0.9241]
[1756864715514,1.12355529,111280.0,111270.0,0.9241]
[1756864715708,0.77436686,111280.0,111270.0,0.9241]
[1756864715916,1.12355529,111280.0,111270.0,0.9241]
[1756864716316,1.10749922,111280.0,111270.0,0.9241]
[1756864717311,0.50831079,111280.0,111270.0,0.9241]
[1756864717617,0.47173079,111280.0,111270.0,1.52328843]
[1756864717817,0.47173079,111280.0,111270.0,1.1741]
[1756864718417,0.47173079,111280.0,111270.0,1.52328843]
[1756864719015,0.50689079,111280.0,111270.0,1.1741]
[1756864719216,0.85607922,111280.0,111270.0,1.1741]
[1756864719416,0.44894079,111280.0,111270.0,1.52328843]
[1756864719815,0.48410079,111280.0,111270.0,1.1741]
[1756864720420,0.85607922,111280.0,111270.0,0.0831]
[1756864720620,0.85607922,111280.0,111270.0,0.88844]
[1756864720820,0.50689079,111280.0,111270.0,0.88844]
[1756864721019,0.85607922,111280.0,111270.0,0.88844]
[1756864721211,0.8077001,111280.0,111270.0,0.04792]
[1756864721413,0.85612858,111280.0,111270.0,0.8944]
[1756864721612,0.85612858,111280.0,111270.0,0.89432]
[1756864722021,0.8077001,111280.0,111270.0,0.92821]
[1756864724024,0.8077001,111280.0,111270.0,0.08181]
[1756864724224,0.85615786,111280.0,111270.0,0.894]
[1756864724824,0.85615786,111280.0,111270.0,0.92789]
[1756864725125,0.8077001,111280.0,111270.0,0.92789]
[1756864725726,0.45851167,111280.0,111270.0,0.92789]
[1756864727226,0.8077001,111280.0,111270.0,0.92789]
[1756864727628,0.45851167,111280.0,111270.0,0.92789]
[1756864729229,0.8077001,111280.0,111270.0,0.92789]
[1756864730925,0.8077001,111280.0,111270.0,0.04792]
[1756864731120,2.34813038,111280.0,111250.0,0.05481006]
[1756864731318,0.49782702,111260.0,111250.0,0.08069]
[1756864731527,0.82960869,111260.0,111250.0,0.08069]
[1756864731722,0.82960869,111260.0,111250.0,0.0468]
[1756864731924,0.03516,111250.0,111240.0,2.62265]
[1756864732223,0.43279274,111250.0,111240.0,2.65265]
[1756864732428,0.10538598,111250.0,111240.0,2.65265]
[1756864732630,0.45457441,111250.0,111240.0,2.65265]
[1756864733732,0.10538598,111250.0,111240.0,2.65265]
[1756864733928,0.50341441,111250.0,111240.0,0.11069]
[1756864734129,0.81341441,111250.0,111240.0,0.95793]
[1756864735129,0.50341441,111250.0,111240.0,0.95793]
[1756864735333,0.15422598,111250.0,111240.0,0.95793]
[1756864736835,0.50341441,111250.0,111240.0,0.95793]
[1756864737229,0.52341441,111250.0,111240.0,0.95793]
[1756864737830,0.88341441,111250.0,111240.0,0.95705]
[1756864738036,0.88341441,111250.0,111240.0,0.0768]
[1756864738037,0.8349701,111250.0,111240.0,0.0768]
[1756864738229,0.88341441,111250.0,111240.0,0.60308]
[1756864738533,0.88341441,111250.0,111240.0,0.0468]
[1756864738931,0.89960869,111250.0,111240.0,0.0468]
[1756864739131,0.8249701,111250.0,111240.0,0.0468]
[1756864740232,0.87331183,111250.0,111240.0,0.0468]
[1756864740433,1.12331183,111250.0,111230.0,0.03389]
[1756864740632,0.44637016,111240.0,111230.0,0.08069]
[1756864740844,0.87331183,111240.0,111230.0,0.08069]
[1756864741242,0.87331183,111240.0,111230.0,0.0468]
[1756864741448,0.87331183,111240.0,111230.0,0.08069]
[1756864741745,0.87350927,111240.0,111230.0,0.08069]
[1756864742041,0.84350927,111240.0,111230.0,0.08069]
[1756864743241,0.02197911,111240.0,111230.0,0.67987843]
[1756864744640,0.02197911,111240.0,111230.0,0.33069]
[1756864744841,0.02197911,111240.0,111230.0,0.67987843]
[1756864748148,0.02197911,111240.0,111230.0,0.33069]
[1756864748346,0.02197911,111240.0,111230.0,0.67987843]
[1756864751746,0.02197911,111240.0,111230.0,0.42987843]
[1756864751950,0.02197911,111240.0,111230.0,0.33069]
[1756864752144,0.0001,111250.0,111240.0,0.03541]
[1756864752453,0.08079,111260.0,111250.0,0.09675]
[1756864752646,0.41069,111260.0,111250.0,0.09675]
[1756864753256,0.41069,111260.0,111250.0,0.08321]
[1756864754359,0.80822016,111260.0,111250.0,0.08321]
[1756864754546,0.80922016,111260.0,111250.0,0.08321]
[1756864755151,0.46003173,111260.0,111250.0,0.08321]
[1756864755452,0.46103173,111260.0,111250.0,0.08321]
[1756864756248,0.47732859,111260.0,111250.0,0.08321]
[1756864756654,0.47732859,111260.0,111250.0,0.4534127]
[1756864756855,0.17036407,111260.0,111250.0,0.4669527]
[1756864757250,0.17036407,111260.0,111250.0,0.7169527]
[1756864758054,0.17036407,111260.0,111250.0,0.72618766]
[1756864758355,0.05036407,111260.0,111250.0,0.72618766]
[1756864758559,0.002,111260.0,111250.0,0.72618766]
[1756864761256,0.002,111260.0,111250.0,0.81607116]
[1756864762958,0.002,111260.0,111250.0,0.72618766]
[1756864764157,0.002,111260.0,111250.0,1.05618766]
[1756864764355,0.02388686,111260.0,111250.0,1.05618766]
[1756864765747,0.02388686,111260.0,111250.0,1.31998766]
[1756864766156,0.02388686,111260.0,111250.0,1.84006766]
[1756864766354,0.002,111260.0,111250.0,2.19006766]
[1756864770664,0.002,111260.0,111250.0,2.27995126]
[1756864771465,0.002,111260.0,111250.0,1.92995126]
[1756864773564,0.002,111260.0,111250.0,2.10441507]
[1756864773770,0.002,111260.0,111250.0,2.01453147]
[1756864774064,0.002,111260.0,111250.0,1.16445147]
[1756864774262,0.002,111260.0,111250.0,2.01357147]
[1756864775365,0.02385628,111260.0,111250.0,2.01357147]
[1756864777062,0.02385628,111260.0,111250.0,1.16445147]
[1756864777267,0.02385628,111260.0,111250.0,2.01381147]
[1756864777969,0.002,111260.0,111250.0,2.01381147]
[1756864778163,0.02387254,111260.0,111250.0,2.01381147]
[1756864778868,0.02387254,111260.0,111250.0,1.16445147]
[1756864779066,0.02387254,111260.0,111250.0,2.01381147]
[1756864779268,0.002,111260.0,111250.0,2.01381147]
[1756864780170,0.02388558,111260.0,111250.0,2.01381147]
[1756864780369,0.02388558,111260.0,111250.0,0.64079923]
[1756864780568,0.02388558,111260.0,111250.0,2.01321147]
[1756864780969,0.02388558,111260.0,111250.0,1.74981147]
[1756864782064,0.02388558,111260.0,111250.0,0.90065147]
[1756864782268,0.10440558,111260.0,111250.0,1.21497039]
[1756864784770,0.9662317,111260.0,111250.0,0.10422427]
[1756864784966,1.19805782,111260.0,111250.0,0.02346]
[1756864785161,1.24642189,111260.0,111250.0,0.84832]
[1756864785466,1.24642189,111260.0,111250.0,1.15672612]
[1756864785467,0.40276965,111260.0,111250.0,1.15672612]
[1756864785672,0.40276965,111260.0,111250.0,1.19406612]
[1756864785971,0.66459577,111260.0,111250.0,0.93224]
[1756864786173,0.66459577,111260.0,111250.0,0.8949]
[1756864786376,0.40276965,111260.0,111250.0,1.19406612]
[1756864786670,0.66459577,111260.0,111250.0,1.19406612]
[1756864786965,1.01459577,111260.0,111250.0,1.19406612]
[1756864787171,0.66459577,111260.0,111250.0,1.19406612]
[1756864787872,1.01459577,111260.0,111250.0,0.93284]
[1756864788175,0.6162317,111260.0,111250.0,1.15732612]
[1756864788473,0.9562317,111260.0,111250.0,1.15732612]
[1756864788674,0.9962317,111260.0,111250.0,1.15732612]
[1756864788969,0.42276965,111260.0,111250.0,1.19598612]
[1756864789165,0.6362317,111260.0,111250.0,1.15864612]
[1756864789468,0.6362317,111260.0,111250.0,1.19598612]
[1756864790276,0.9462317,111260.0,111250.0,1.19598612]
[1756864790470,0.6362317,111260.0,111250.0,1.19598612]
[1756864790774,0.35440558,111260.0,111250.0,0.93416]
[1756864790979,0.6162317,111260.0,111250.0,1.19598612]
[1756864792575,0.6162317,111260.0,111250.0,0.93416]
[1756864792777,0.6162317,111260.0,111250.0,1.19598612]
[1756864793877,0.35440558,111260.0,111250.0,1.19598612]
[1756864794072,0.6162317,111260.0,111250.0,1.19598612]
[1756864794472,0.6162317,111260.0,111250.0,1.19514612]
[1756864794674,0.6162317,111260.0,111250.0,0.34574612]
[1756864794876,0.6162317,111260.0,111250.0,1.19498612]
[1756864796679,0.6162317,111260.0,111250.0,1.19490612]
[1756864799186,0.3662317,111260.0,111250.0,1.19490612]
[1756864799980,0.3662317,111260.0,111250.0,0.93224]
[1756864800279,1.23642189,111260.0,111240.0,0.03734]
[1756864800486,0.72469577,111260.0,111250.0,0.02391]
[1756864800679,0.98642189,111260.0,111250.0,0.02391]
[1756864800880,0.04533,111240.0,111230.0,2.00338612]
[1756864801180,0.10240558,111240.0,111230.0,2.85174612]
[1756864801484,0.06721558,111240.0,111230.0,2.88908612]
[1756864802080,0.02188558,111240.0,111230.0,2.88908612]
[1756864802282,0.34244612,111250.0,111240.0,0.08392]
[1756864802583,0.36422977,111250.0,111240.0,0.34574612]
[1756864803882,0.10240365,111250.0,111240.0,0.08392]
[1756864804084,0.06721365,111250.0,111240.0,0.60757224]
[1756864804591,0.02188365,111250.0,111240.0,0.34574612]
[1756864804881,0.02188365,111250.0,111240.0,0.60757224]
[1756864805588,0.02188365,111250.0,111240.0,1.11939836]
[1756864805979,0.02188365,111250.0,111240.0,0.85757224]
[1756864806177,0.02188365,111250.0,111240.0,0.59574612]
[1756864806380,0.02188365,111250.0,111240.0,0.85757224]
[1756864807586,0.02188365,111250.0,111240.0,1.77834365]
[1756864807985,0.02188365,111250.0,111240.0,0.40421141]
[1756864808193,0.02188365,111250.0,111240.0,1.77862365]
[1756864808889,0.02188365,111250.0,111240.0,0.92786365]
[1756864809187,0.02188365,111250.0,111240.0,1.77862365]
[1756864809892,0.02188365,111250.0,111240.0,0.92786365]
[1756864810088,0.10304365,111250.0,111240.0,0.60757224]
[1756864810386,0.10304365,111250.0,111240.0,1.19682612]
[1756864810689,0.10304365,111250.0,111240.0,1.19674612]
[1756864811393,0.15143051,111250.0,111240.0,1.19674612]
[1756864812491,0.16058326,111250.0,111240.0,1.19674612]
[1756864812690,0.6721964,111250.0,111240.0,0.9342]
[1756864812890,0.68866111,111250.0,111240.0,0.08392]
[1756864813091,0.42683499,111250.0,111240.0,1.19598612]
[1756864813290,0.68866111,111250.0,111240.0,1.19598612]
[1756864813694,0.42683499,111250.0,111240.0,1.19598612]
[1756864813895,0.68866111,111250.0,111240.0,0.93416]
[1756864814090,0.38337224,111250.0,111240.0,1.19598612]
[1756864814391,0.64519836,111250.0,111240.0,1.19598612]
[1756864814691,0.64519836,111250.0,111240.0,1.45781224]
[1756864814692,0.38337224,111250.0,111240.0,1.45781224]
[1756864815784,0.02188365,111250.0,111240.0,1.45781224]
[1756864816187,0.04844305,111250.0,111240.0,1.45781224]
[1756864816395,0.02188365,111250.0,111240.0,1.45781224]
[1756864816592,0.04854305,111260.0,111250.0,0.07374]
[1756864816893,0.07263305,111260.0,111250.0,0.35874612]
[1756864817094,0.09454819,111260.0,111250.0,0.35874612]
[1756864817294,0.12947819,111260.0,111250.0,0.35874612]
[1756864817684,0.42561431,111260.0,111250.0,0.34469612]
[1756864817988,0.08135819,111260.0,111250.0,1.19797612]
[1756864818186,0.07135819,111260.0,111250.0,1.21202612]
[1756864818390,0.07235819,111260.0,111250.0,1.21202612]
[1756864820294,0.02391712,111260.0,111250.0,1.47385224]
[1756864820690,0.02391712,111260.0,111250.0,0.9502]
[1756864820891,0.02391712,111260.0,111250.0,1.47385224]
[1756864821790,0.02391712,111260.0,111250.0,1.21202612]
[1756864821991,0.04810712,111260.0,111250.0,0.9494]
[1756864822196,0.04810712,111260.0,111250.0,1.21122612]
[1756864822492,0.02391712,111260.0,111250.0,0.9494]
[1756864822796,0.02391712,111260.0,111250.0,1.21122612]
[1756864823185,0.0239145,111260.0,111250.0,1.21122612]
[1756864823794,0.0730345,111260.0,111250.0,1.21102612]
[1756864823996,0.0481045,111260.0,111250.0,1.21102612]
[1756864824191,0.0239145,111260.0,111250.0,1.21102612]
[1756864824598,0.0730345,111260.0,111250.0,0.9492]
[1756864824799,0.0481045,111260.0,111250.0,1.21102612]
[1756864825401,0.0730345,111260.0,111250.0,0.9492]
[1756864825698,0.1073445,111260.0,111250.0,1.19965612]
[1756864826100,0.1073445,111260.0,111250.0,1.21370612]
[1756864826588,0.0730345,111260.0,111250.0,1.21370612]
[1756864826789,0.0730345,111260.0,111250.0,0.95188]
[1756864826989,0.0730345,111260.0,111250.0,1.21370612]
[1756864827796,0.0239145,111260.0,111250.0,1.21370612]
[1756864828798,0.0239145,111260.0,111250.0,1.47553224]
[1756864830396,0.0239145,111260.0,111250.0,1.21370612]
[1756864830798,0.0239145,111260.0,111250.0,1.47553224]
[1756864833906,0.0239145,111260.0,111250.0,0.95188]
[1756864834104,0.0239145,111260.0,111250.0,1.73933224]
[1756864835506,0.0239145,111260.0,111250.0,1.90466974]
[1756864836600,0.0239145,111260.0,111250.0,1.81478614]
[1756864837408,0.0239145,111260.0,111250.0,1.90466974]
[1756864839006,0.0239145,111260.0,111250.0,1.81478614]
[1756864839310,0.0239145,111260.0,111250.0,0.95982614]
[1756864839713,0.0239145,111260.0,111250.0,1.81462614]
[1756864841411,0.0239145,111260.0,111250.0,1.90450974]
[1756864841800,0.0239145,111260.0,111250.0,2.27450974]
[1756864843314,0.002,111260.0,111250.0,2.27450974]
[1756864846415,0.002,111260.0,111250.0,4.01562974]
[1756864846611,0.02372969,111260.0,111250.0,4.01562974]
[1756864848611,0.0001,111270.0,111260.0,0.0898755]
[1756864848820,0.0001,111280.0,111270.0,0.081]
[1756864849110,0.08412305,111290.0,111270.0,0.081]
[1756864849111,0.0001,111290.0,111280.0,0.1708594]
[1756864849318,0.13198305,111300.0,111290.0,0.081]
[1756864849508,0.13188305,111300.0,111290.0,1.28642614]
[1756864849710,0.0001,111310.0,111300.0,0.09588]
[1756864849913,0.0001,111320.0,111300.0,1.28796922]
[1756864850107,0.04786,111320.0,111310.0,0.43010614]
[1756864850309,0.08422305,111330.0,111320.0,0.03498]
[1756864850514,0.13198305,111340.0,111330.0,0.03498]
[1756864850719,0.08344,111340.0,111330.0,1.28746614]
[1756864850916,0.33344,111340.0,111330.0,1.28742614]
[1756864852420,0.33944,111340.0,111330.0,1.28742614]
[1756864852611,0.33944,111340.0,111330.0,0.93832]
[1756864852811,0.34444,111340.0,111330.0,1.28842614]
[1756864854213,0.011,111340.0,111330.0,1.28842614]
[1756864854614,0.09444,111340.0,111330.0,1.28878614]
[1756864855216,0.09444,111340.0,111330.0,0.93968]
[1756864855422,0.09444,111340.0,111330.0,1.28878614]